fUSD/lending_fUSD_20260418
["ID","MTS","AMOUNT","RATE_DAILY","PERIOD"]
[420682705,1776457939414,-300.0,0.00040155,2]
[420682706,1776457939424,-300.0,0.00040155,2]
[420682707,1776457939433,-601.44251246,0.00040155,2]
[420682708,1776457939443,-300.00000001,0.00040155,2]
[420682709,1776457939452,-300.0,0.00040155,2]
[420682710,1776457939462,-525.1024179,0.00040155,2]
[420682711,1776457939472,-1061.56639172,0.00040155,2]
[420682712,1776457939482,-1199.22609796,0.00040155,2]
[420682713,1776457939491,-581.32951338,0.00040155,2]
[420682714,1776457939500,-722.43829412,0.00040155,2]
[420682715,1776457939510,-300.0,0.00040155,2]
[420682716,1776457939521,-300.0,0.00040155,2]
[420682717,1776457939531,-300.0,0.00040155,2]
[420682718,1776457939540,-300.0,0.00040155,2]
[420682719,1776457939550,-649.98683931,0.00040155,2]
[420682720,1776457939559,-573.20302984,0.00040155,2]
[420682721,1776457939568,-300.0,0.00040155,2]
[420682722,1776457939578,-1141.45321558,0.00040155,2]
[420682723,1776457939586,-860.10520257,0.00040155,2]
[420682724,1776457939595,-412.43836255,0.00040155,2]
[420682725,1776457939605,-461.55353039,0.00040155,2]
[420682726,1776457939614,-432.45785378,0.00040155,2]
[420682727,1776457939624,-449.6240706,0.00040155,2]
[420682728,1776457939633,-303.35395689,0.00040155,2]
[420682729,1776457939643,-548.81900938,0.00040155,2]
[420682730,1776457939652,-300.0,0.00040155,2]
[420682731,1776457939662,-300.0,0.00040155,2]
[420682732,1776457939672,-300.0,0.00040155,2]
[420682733,1776457939681,-363.06629116,0.00040155,2]
[420682734,1776457939690,-300.00000005,0.00040155,2]
[420682735,1776457939700,-653.61583357,0.00040155,2]
[420682736,1776457939709,-300.0,0.00040155,2]
[420682737,1776457939718,-601.44251246,0.00040155,2]
[420682738,1776457939727,-300.0,0.00040155,2]
[420682739,1776457939736,-300.0,0.00040155,2]
[420682740,1776457939745,-525.1024179,0.00040155,2]
[420682741,1776457939755,-1061.56639172,0.00040155,2]
[420682742,1776457939764,-599.99999997,0.00040155,2]
[420682743,1776457939773,-722.43829412,0.00040155,2]
[420682744,1776457939783,-300.0,0.00040155,2]
[420682745,1776457939792,-300.0,0.00040155,2]
[420682746,1776457939802,-649.98683931,0.00040155,2]
[420682747,1776457940118,-300.0,0.00040155,2]
[420682748,1776457940168,-300.0,0.00040155,2]
[420682749,1776457940177,-300.0,0.00040155,2]
[420682750,1776457940187,-825.0,0.00040158,90]
[420682751,1776457940196,-5007.0,0.00040177,30]
[420682752,1776457940205,-3200.0,0.00040183,30]
[420682753,1776457940215,-1000.0,0.00040192,2]
[420682754,1776457940225,-1141.45321558,0.00040192,2]
[420682755,1776457940235,-860.10520257,0.00040192,2]
[420682756,1776457940244,-461.55353039,0.00040192,2]
[420682757,1776457940254,-576.61047177,0.00040192,2]
[420682758,1776457940264,-449.6240706,0.00040192,2]
[420682759,1776457940275,-479.04025496,0.00040192,2]
[420682760,1776457940285,-303.35395689,0.00040192,2]
[420682761,1776457940295,-418.92152337,0.00040192,2]
[420682762,1776457940306,-300.00000001,0.00040192,2]
[420682763,1776457940317,-300.0,0.00040192,2]
[420682764,1776457940327,-300.0,0.00040192,2]
[420682765,1776457940337,-300.00000001,0.00040192,2]
[420682766,1776457940347,-801.92335026,0.00040192,2]
[420682767,1776457940356,-525.1024179,0.00040192,2]
[420682768,1776457940365,-300.0,0.00040192,2]
[420682769,1776457940375,-353.85546405,0.00040192,2]
[420682770,1776457940384,-722.43829412,0.00040192,2]
[420682771,1776457940393,-300.0,0.00040192,2]
[420682772,1776457940403,-300.0,0.00040192,2]
[420682773,1776457940412,-649.98683931,0.00040192,2]
[420682774,1776457940421,-300.0,0.00040192,2]
[420682775,1776457940431,-1548.31300506,0.00040192,2]
[420682776,1776457940441,-1141.45321558,0.00040192,2]
[420682777,1776457940450,-860.10520257,0.00040192,2]
[420682778,1776457940460,-461.55353039,0.00040192,2]
[420682779,1776457940469,-449.6240706,0.00040192,2]
[420682780,1776457940478,-303.35395689,0.00040192,2]
[420682781,1776457940487,-418.92152337,0.00040192,2]
[420682782,1776457940497,-300.00000001,0.00040192,2]
[420682783,1776457940507,-300.0,0.00040192,2]
[420682784,1776457940516,-300.0,0.00040192,2]
[420682785,1776457940526,-525.1024179,0.00040192,2]
[420682786,1776457940535,-722.43829412,0.00040192,2]
[420682787,1776457940545,-413.81249845,0.00040192,2]
[420682788,1776457940555,-300.0,0.00040192,2]
[420682789,1776457940566,-300.0,0.00040192,2]
[420682790,1776457940576,-649.98683931,0.00040192,2]
[420682791,1776457940586,-300.0,0.00040192,2]
[420682792,1776457940596,-300.0,0.00040192,2]
[420682793,1776457940607,-497.62278126,0.00040192,2]
[420682794,1776457940616,-1141.45321558,0.00040192,2]
[420682795,1776457940627,-860.10520257,0.00040192,2]
[420682796,1776457940637,-461.55353039,0.00040192,2]
[420682797,1776457940647,-303.35395689,0.00040192,2]
[420682798,1776457940657,-418.92152338,0.00040192,2]
[420682799,1776457940666,-599.99999998,0.00040192,2]
[420682800,1776457940676,-550.0,0.00040192,2]
[420682801,1776457940686,-300.0,0.00040192,2]
[420682802,1776457940695,-300.31513875,0.00040192,2]
[420682803,1776457940706,-300.0,0.00040192,2]
[420682804,1776457940716,-525.1024179,0.00040192,2]
[420682805,1776457940728,-963.25105898,0.00040192,2]
[420682806,1776457940738,-300.0,0.00040192,2]
[420682807,1776457940749,-300.0,0.00040192,2]
[420682808,1776457940759,-250.0,0.00040228,30]
[420682809,1776457940770,-250.0,0.00040228,30]
[420682810,1776457940781,-250.0,0.00040228,30]
[420682811,1776457940791,-250.0,0.00040228,30]
[420682812,1776457940800,-250.0,0.00040228,30]
[420682813,1776457940812,-500.0,0.0004026,120]
[420682814,1776457940835,-633.00072936,0.00040261,7]
[420682815,1776457940846,-1357.82,0.00040273,30]
[420682816,1776457940856,-1101.4,0.00040296,30]
[420682817,1776457940866,-184.29,0.0004034,30]
[420682818,1776457940877,-159.04,0.0004034,30]
[420682819,1776457940887,-200.0,0.0004034,2]
[420682820,1776457940898,-200.0,0.0004034,2]
[420682821,1776457940909,-200.0,0.0004034,2]
[420682822,1776457940919,-200.0,0.0004034,2]
[420682823,1776457940930,-200.0,0.0004034,2]
[420682824,1776457940944,-200.0,0.0004034,2]
[420682825,1776457940954,-200.0,0.0004034,2]
[420682826,1776457940964,-200.0,0.0004034,2]
[420682827,1776457940975,-200.0,0.0004034,2]
[420682828,1776457940985,-200.0,0.0004034,2]
[420682829,1776457940995,-200.0,0.0004034,2]
[420682830,1776457941005,-200.0,0.0004034,2]
[420682831,1776457941015,-200.0,0.0004034,2]
[420682832,1776457941025,-200.0,0.0004034,2]
[420682833,1776457941036,-200.0,0.0004034,2]
[420682834,1776457941046,-200.0,0.0004034,2]
[420682835,1776457941056,-200.0,0.0004034,2]
[420682836,1776457941066,-200.0,0.0004034,2]
[420682837,1776457941075,-200.0,0.0004034,2]
[420682838,1776457941085,-200.0,0.0004034,2]
[420682839,1776457941096,-200.0,0.0004034,2]
[420682840,1776457941107,-200.0,0.0004034,2]
[420682841,1776457941117,-200.0,0.0004034,2]
[420682842,1776457941126,-200.0,0.0004034,2]
[420682843,1776457941136,-200.0,0.0004034,2]
[420682844,1776457941146,-200.0,0.0004034,2]
[420682845,1776457941156,-200.0,0.0004034,2]
[420682846,1776457941166,-200.0,0.0004034,2]
[420682847,1776457941178,-200.0,0.0004034,2]
[420682848,1776457941188,-200.0,0.0004034,2]
[420682849,1776457941197,-200.0,0.0004034,2]
[420682850,1776457941207,-200.0,0.0004034,2]
[420682851,1776457941217,-200.0,0.0004034,2]
[420682852,1776457941226,-200.0,0.0004034,2]
[420682853,1776457941236,-200.0,0.0004034,2]
[420682854,1776457941246,-200.0,0.0004034,2]
[420682855,1776457941256,-289.0,0.0004034,2]
[420682856,1776457941266,-800.0,0.0004034,13]
[420682857,1776457941276,-800.0,0.0004034,13]
[420682858,1776457941286,-800.0,0.0004034,13]
[420682859,1776457941296,-800.0,0.0004034,13]
[420682860,1776457941306,-800.0,0.0004034,13]
[420682861,1776457941316,-800.0,0.0004034,13]
[420682862,1776457941326,-800.0,0.0004034,13]
[420682863,1776457941336,-800.0,0.0004034,13]
[420682864,1776457941345,-800.0,0.0004034,13]
[420682865,1776457941355,-800.0,0.0004034,13]
[420682866,1776457941364,-800.0,0.0004034,13]
[420682867,1776457941374,-800.0,0.0004034,13]
[420682868,1776457941384,-800.0,0.0004034,13]
[420682869,1776457941393,-800.0,0.0004034,13]
[420682870,1776457941403,-800.0,0.0004034,13]
[420682871,1776457941413,-800.0,0.0004034,13]
[420682872,1776457941422,-800.0,0.0004034,13]
[420682873,1776457941432,-800.0,0.0004034,13]
[420682874,1776457941446,-800.0,0.0004034,13]
[420682875,1776457941456,-800.0,0.0004034,13]
[420682876,1776457941467,-800.0,0.0004034,13]
[420682877,1776457941477,-800.0,0.0004034,13]
[420682878,1776457941488,-800.0,0.0004034,13]
[420682879,1776457941499,-800.0,0.0004034,13]
[420682880,1776457941509,-800.0,0.0004034,13]
[420682881,1776457941518,-800.0,0.0004034,13]
[420682882,1776457941528,-800.0,0.0004034,13]
[420682883,1776457941538,-800.0,0.0004034,13]
[420682884,1776457941548,-800.0,0.0004034,13]
[420682885,1776457941558,-800.0,0.0004034,13]
[420682886,1776457941568,-800.0,0.0004034,13]
[420682887,1776457941578,-800.0,0.0004034,13]
[420682888,1776457941588,-800.0,0.0004034,13]
[420682889,1776457941597,-800.0,0.0004034,13]
[420682890,1776457941607,-800.0,0.0004034,13]
[420682891,1776457941617,-800.0,0.0004034,13]
[420682892,1776457941628,-800.0,0.0004034,13]
[420682893,1776457941638,-800.0,0.0004034,13]
[420682894,1776457941648,-800.0,0.0004034,13]
[420682895,1776457941658,-800.0,0.0004034,13]
[420682896,1776457941668,-800.0,0.0004034,13]
[420682897,1776457941678,-800.0,0.0004034,13]
[420682898,1776457941689,-800.0,0.0004034,13]
[420682899,1776457941699,-800.0,0.0004034,13]
[420682900,1776457941709,-800.0,0.0004034,13]
[420682901,1776457941719,-800.0,0.0004034,13]
[420682902,1776457941729,-800.0,0.0004034,13]
[420682903,1776457941740,-800.0,0.0004034,13]
[420682904,1776457941751,-423.0,0.0004034,13]
[420682905,1776457941761,-800.0,0.0004034,14]
[420682906,1776457941772,-800.0,0.0004034,14]
[420682907,1776457941782,-800.0,0.0004034,14]
[420682908,1776457941792,-800.0,0.0004034,14]
[420682909,1776457941802,-800.0,0.0004034,14]
[420682910,1776457941812,-800.0,0.0004034,14]
[420682911,1776457941822,-800.0,0.0004034,14]
[420682912,1776457941832,-800.0,0.0004034,14]
[420682913,1776457941841,-800.0,0.0004034,14]
[420682914,1776457941852,-800.0,0.0004034,14]
[420682915,1776457941862,-800.0,0.0004034,14]
[420682916,1776457941872,-800.0,0.0004034,14]
[420682917,1776457941883,-800.0,0.0004034,14]
[420682918,1776457941892,-800.0,0.0004034,14]
[420682919,1776457941903,-800.0,0.0004034,14]
[420682920,1776457941912,-800.0,0.0004034,14]
[420682921,1776457941922,-160.0,0.0004034,14]
[420682922,1776457941931,-800.0,0.0004034,14]
[420682923,1776457941941,-800.0,0.0004034,14]
[420682924,1776457941950,-800.0,0.0004034,14]
[420682925,1776457941960,-800.0,0.0004034,14]
[420682926,1776457941970,-800.0,0.0004034,14]
[420682927,1776457941980,-500.0,0.0004034,2]
[420682928,1776457941990,-500.0,0.0004034,2]
[420682929,1776457942000,-800.0,0.0004034,14]
[420682930,1776457942011,-800.0,0.0004034,14]
[420682931,1776457942021,-800.0,0.0004034,14]
[420682932,1776457942032,-800.0,0.0004034,14]
[420682933,1776457942043,-800.0,0.0004034,14]
[420682934,1776457942059,-800.0,0.0004034,14]
[420682935,1776457942070,-800.0,0.0004034,14]
[420682936,1776457942081,-800.0,0.0004034,14]
[420682937,1776457942091,-800.0,0.0004034,14]
[420682938,1776457942101,-500.0,0.0004034,2]
[420682939,1776457942111,-500.0,0.0004034,2]
[420682940,1776457942121,-500.0,0.0004034,2]
[420682941,1776457942131,-500.0,0.0004034,2]
[420682942,1776457942142,-428.0,0.0004034,2]
[420682943,1776457942152,-676.0,0.00040369,25]
[420682944,1776457942163,-854.0,0.00040406,2]
[420682945,1776457942174,-854.0,0.00040406,2]
[420682946,1776457942185,-500.0,0.0004041,120]
[420682947,1776457942196,-213.26080701,0.00040441,30]
[420682948,1776457942207,-4156.4156,0.00040448,2]
[420682949,1776457942217,-1988.75124894,0.00040493,5]
[420682950,1776457942229,-643.0,0.000405,120]
[420682951,1776457942239,-157.0997553,0.00040588,2]
[420682952,1776457942250,-643.0,0.0004059,120]
[420682953,1776457942264,-643.0,0.0004059,120]
[420682954,1776457942274,-4156.4156,0.00040593,2]
[420682955,1776457942284,-1000.0,0.00040597,7]
[420682956,1776457942295,-2646.73,0.0004063,120]
[420682957,1776457942305,-10000.0,0.00040685,30]
[420682958,1776457942315,-1000.0,0.000407,30]
[420682959,1776457942326,-1015.34517804,0.000407,6]
[420682960,1776457942337,-4156.4156,0.00040737,2]
[420682961,1776457942347,-1444.0,0.00040767,120]
[420682962,1776457942358,-500.0,0.00040771,10]
[420682963,1776457942368,-168.15736741,0.00040777,7]
[420682964,1776457942378,-173.0,0.000408,90]
[420682965,1776457942389,-230.34233001,0.00040821,120]
[420682966,1776457942399,-150.0,0.00040822,30]
[420682967,1776457942410,-150.0,0.00040822,30]
[420682968,1776457942421,-163.61806873,0.00040822,30]
[420682969,1776457942431,-150.0,0.00040822,60]
[420682970,1776457942441,-150.0,0.00040822,60]
[420682971,1776457942451,-150.0,0.00040822,60]
[420682972,1776457942462,-150.0,0.00040822,60]
[420682973,1776457942472,-150.0,0.00040822,60]
[420682974,1776457942483,-150.0,0.00040822,60]
[420682975,1776457942493,-150.0,0.00040822,60]
[420682976,1776457942503,-150.0,0.00040822,60]
[420682977,1776457942513,-150.0,0.00040822,60]
[420682978,1776457942523,-150.0,0.00040822,60]
[420682979,1776457942534,-150.0,0.00040822,60]
[420682980,1776457942545,-150.0,0.00040822,60]
[420682981,1776457942555,-150.0,0.00040822,60]
[420682982,1776457942565,-150.0,0.00040822,60]
[420682983,1776457942576,-150.0,0.00040822,60]
[420682984,1776457942586,-150.0,0.00040822,60]
[420682985,1776457942596,-150.0,0.00040822,60]
[420682986,1776457942606,-150.0,0.00040822,60]
[420682987,1776457942616,-150.0,0.00040822,60]
[420682988,1776457942626,-150.0,0.00040822,60]
[420682989,1776457942637,-250.0,0.00040822,2]
[420682990,1776457942647,-299.1663798,0.00040822,60]
[420682991,1776457942967,-250.0,0.00040822,2]
[420682992,1776457942978,-250.0,0.00040822,2]
[420682993,1776457942988,-257.39468462,0.00040822,2]
[420682994,1776457942999,-208.88713324,0.00040822,60]
[420682995,1776457943009,-150.0,0.00040822,60]
[420682996,1776457943019,-150.0,0.00040822,60]
[420682997,1776457943028,-150.0,0.00040822,60]
[420682998,1776457943043,-150.0,0.00040822,60]
[420682999,1776457943054,-180.71199763,0.00040822,60]
[420683000,1776457943065,-2146.0,0.00040822,60]
[420683001,1776457943075,-2146.0,0.00040822,60]
[420683002,1776457943086,-2146.0,0.00040822,60]
[420683003,1776457943096,-2146.0,0.00040822,60]
[420683004,1776457943108,-2146.0,0.00040822,60]
[420683005,1776457943118,-500.0,0.00040822,60]
[420683006,1776457943128,-2146.0,0.00040822,60]
[420683007,1776457943139,-500.0,0.00040822,60]
[420683008,1776457943150,-2146.0,0.00040822,60]
[420683009,1776457943161,-500.0,0.00040822,60]
[420683010,1776457943171,-2146.0,0.00040822,60]
[420683011,1776457943181,-500.0,0.00040822,60]
[420683012,1776457943191,-2146.0,0.00040822,60]
[420683013,1776457943201,-500.0,0.00040822,60]
[420683014,1776457943211,-2146.0,0.00040822,60]
[420683015,1776457943221,-500.0,0.00040822,60]
[420683016,1776457943230,-2146.0,0.00040822,60]
[420683017,1776457943241,-500.0,0.00040822,60]
[420683018,1776457943251,-2146.0,0.00040822,60]
[420683019,1776457943262,-500.0,0.00040822,60]
[420683020,1776457943272,-2146.0,0.00040822,60]
[420683021,1776457943282,-500.0,0.00040822,60]
[420683022,1776457943292,-2146.0,0.00040822,60]
[420683023,1776457943302,-500.0,0.00040822,60]
[420683024,1776457943314,-2146.0,0.00040822,60]
[420683025,1776457943324,-2146.0,0.00040822,60]
[420683026,1776457943334,-500.0,0.00040822,60]
[420683027,1776457943344,-2146.0,0.00040822,60]
[420683028,1776457943353,-500.0,0.00040822,60]
[420683029,1776457943363,-500.0,0.00040822,60]
[420683030,1776457943372,-500.0,0.00040822,60]
[420683031,1776457943382,-2146.0,0.00040822,60]
[420683032,1776457943391,-500.0,0.00040822,60]
[420683033,1776457943400,-440.10337437,0.00040822,60]
[420683034,1776457943410,-2146.0,0.00040822,60]
[420683035,1776457943420,-150.0,0.00040822,10]
[420683036,1776457943429,-150.0,0.00040822,10]
[420683037,1776457943438,-150.0,0.00040822,10]
[420683038,1776457943447,-150.0,0.00040822,10]
[420683039,1776457943457,-500.0,0.00040822,60]
[420683040,1776457943467,-150.0,0.00040822,10]
[420683041,1776457943476,-500.0,0.00040822,60]
[420683042,1776457943487,-227.28043229,0.00040822,10]
[420683043,1776457943499,-2146.0,0.00040822,60]
[420683044,1776457943509,-500.0,0.00040822,60]
[420683045,1776457943519,-202.39286176,0.00040822,60]
[420683046,1776457943528,-2146.0,0.00040822,60]
[420683047,1776457943538,-2146.0,0.00040822,60]
[420683048,1776457943548,-2146.0,0.00040822,60]
[420683049,1776457943558,-2169.62395204,0.00040822,60]
[420683050,1776457943568,-500.0,0.00040822,60]
[420683051,1776457943578,-500.0,0.00040822,60]
[420683052,1776457943588,-614.04434257,0.00040822,60]
[420683053,1776457943598,-150.0,0.00040822,2]
[420683054,1776457943607,-150.0,0.00040822,60]
[420683055,1776457943617,-165.73125958,0.00040822,60]
[420683056,1776457943626,-150.0,0.00040822,2]
[420683057,1776457943636,-150.0,0.00040834,2]
[420683058,1776457943646,-1000.0,0.00040849,30]
[420683059,1776457943655,-157.0997553,0.00040862,2]
[420683060,1776457943665,-894.53,0.00040865,90]
[420683061,1776457943675,-4156.4156,0.00040882,2]
[420683062,1776457943685,-529.27436039,0.000409,30]
[420683063,1776457943694,-240.0,0.00040904,85]
[420683064,1776457943704,-209.0,0.0004093,30]
[420683065,1776457943713,-38478.0,0.0004095,60]
[420683066,1776457943723,-10000.0,0.00040959,30]
[420683067,1776457943734,-222.409687,0.00040969,53]
[420683068,1776457943743,-1357.82,0.00040986,30]
[420683069,1776457943754,-1001.0,0.00041,30]
[420683070,1776457943763,-1201.0,0.00041,30]
[420683071,1776457943773,-500.0,0.00041,45]
[420683072,1776457943783,-500.0,0.00041,45]
[420683073,1776457943793,-500.0,0.00041,45]
[420683074,1776457943803,-500.0,0.00041,45]
[420683075,1776457943813,-500.0,0.00041,45]
[420683076,1776457943822,-500.0,0.00041,45]
[420683077,1776457943832,-500.0,0.00041,45]
[420683078,1776457943842,-500.0,0.00041,45]
[420683079,1776457943852,-500.0,0.00041,45]
[420683080,1776457943863,-1203.27386168,0.00041,30]
[420683081,1776457943872,-500.0,0.00041,45]
[420683082,1776457943883,-500.0,0.00041,45]
[420683083,1776457943893,-500.0,0.00041,45]
[420683084,1776457943903,-500.0,0.00041,45]
[420683085,1776457943913,-500.0,0.00041,45]
[420683086,1776457943923,-500.0,0.00041,45]
[420683087,1776457943933,-500.0,0.00041,45]
[420683088,1776457943943,-235202.08968525,0.00041,2]
[420683089,1776457943953,-930.0,0.00041,30]
[420683090,1776457943963,-500.0,0.00041,45]
[420683091,1776457943973,-500.0,0.00041,45]
[420683092,1776457943982,-500.0,0.00041,45]
[420683093,1776457943992,-500.0,0.00041,45]
[420683094,1776457944001,-500.0,0.00041,45]
[420683095,1776457944011,-500.0,0.00041,45]
[420683096,1776457944021,-500.0,0.00041,45]
[420683097,1776457944031,-500.0,0.00041,45]
[420683098,1776457944040,-500.0,0.00041,45]
[420683099,1776457944050,-1923.34,0.00041,2]
[420683100,1776457944061,-638.02851178,0.00041,30]
[420683101,1776457944070,-1000.0,0.00041,30]
[420683102,1776457944080,-596.8347434,0.00041,30]
[420683103,1776457944090,-939.37863578,0.00041,30]
[420683104,1776457944100,-438.09841318,0.00041,5]
[420683105,1776457944110,-696.30319009,0.00041,30]
[420683106,1776457944120,-79706.12017008,0.00041,30]
[420683107,1776457944129,-7311.71176807,0.00041,30]
[420683108,1776457944139,-111363.4034836,0.00041,31]
[420683109,1776457944148,-5550.28251433,0.00041,30]
[420683110,1776457944158,-57506.42981066,0.00041,5]
[420683111,1776457944167,-574.20981158,0.00041,30]
[420683112,1776457944177,-10853.85251837,0.00041,20]
[420683113,1776457944187,-10014.99998736,0.00041,33]
[420683114,1776457944196,-7738.49776291,0.00041,28]
[420683115,1776457944206,-16061.83646822,0.00041,30]
[420683116,1776457944216,-3749.49,0.00041,40]
[420683117,1776457944226,-2217.95,0.00041,40]
[420683118,1776457944235,-692.04,0.00041,40]
[420683119,1776457944244,-1000.0,0.00041,120]
[420683120,1776457944254,-1000.0,0.00041,120]
[420683121,1776457944264,-1000.0,0.00041,120]
[420683122,1776457944273,-1000.0,0.00041,120]
[420683123,1776457944283,-1000.0,0.00041,120]
[420683124,1776457944292,-1000.0,0.00041,120]
[420683125,1776457944302,-643.0,0.00041,120]
[420683126,1776457944312,-500.0,0.00041011,120]
[420683127,1776457944323,-4156.4156,0.00041026,2]
[420683128,1776457944333,-676.0,0.0004104,26]
[420683129,1776457944343,-500.0,0.00041082,120]
[420683130,1776457944353,-500.0,0.00041095,2]
[420683131,1776457944363,-500.0,0.00041095,2]
[420683132,1776457944373,-500.0,0.00041095,2]
[420683133,1776457944382,-500.0,0.00041095,2]
[420683134,1776457944392,-500.0,0.00041095,2]
[420683135,1776457944410,-500.0,0.00041095,2]
[420683136,1776457944421,-500.0,0.00041095,2]
[420683137,1776457944430,-500.0,0.00041095,2]
[420683138,1776457944440,-500.0,0.00041095,2]
[420683139,1776457944449,-234.60621303,0.00041095,2]
[420683140,1776457944459,-500.0,0.00041095,2]
[420683141,1776457944470,-500.0,0.00041095,2]
[420683142,1776457944479,-500.0,0.00041095,2]
[420683143,1776457944489,-500.0,0.00041095,2]
[420683144,1776457944499,-500.0,0.00041095,2]
[420683145,1776457944509,-500.0,0.00041095,2]
[420683146,1776457944518,-500.0,0.00041095,2]
[420683147,1776457944528,-500.0,0.00041095,2]
[420683148,1776457944538,-500.0,0.00041095,2]
[420683149,1776457944547,-500.0,0.00041095,2]
[420683150,1776457944556,-411.519335,0.00041095,2]
[420683151,1776457944566,-1500.0,0.00041095,10]
[420683152,1776457944576,-7224.84032962,0.00041095,5]
[420683153,1776457944585,-500.0,0.00041095,2]
[420683154,1776457944594,-500.0,0.00041095,2]
[420683155,1776457944603,-500.0,0.00041095,2]
[420683156,1776457944613,-500.0,0.00041095,2]
[420683157,1776457944623,-500.0,0.00041095,2]
[420683158,1776457944632,-500.0,0.00041095,2]
[420683159,1776457944642,-579.4669792,0.00041095,2]
[420683160,1776457944651,-500.0,0.00041095,2]
[420683161,1776457944660,-500.0,0.00041095,2]
[420683162,1776457944670,-500.0,0.00041095,2]
[420683163,1776457944679,-500.0,0.00041095,2]
[420683164,1776457944689,-500.0,0.00041095,2]
[420683165,1776457944698,-500.0,0.00041095,2]
[420683166,1776457944707,-500.0,0.00041095,2]
[420683167,1776457944716,-500.0,0.00041095,2]
[420683168,1776457944726,-500.0,0.00041095,2]
[420683169,1776457944735,-500.0,0.00041095,2]
[420683170,1776457944744,-500.0,0.00041095,2]
[420683171,1776457944754,-500.0,0.00041095,2]
[420683172,1776457944763,-307.01005536,0.00041095,2]
[420683173,1776457944773,-500.0,0.00041095,2]
[420683174,1776457944783,-500.0,0.00041095,2]
[420683175,1776457944793,-500.0,0.00041095,2]
[420683176,1776457944802,-500.0,0.00041095,2]
[420683177,1776457944812,-500.0,0.00041095,2]
[420683178,1776457944821,-218.03929758,0.00041095,2]
[420683179,1776457944831,-314.23689422,0.00041095,2]
[420683180,1776457944841,-500.0,0.00041095,120]
[420683181,1776457944850,-500.0,0.00041095,120]
[420683182,1776457944860,-500.0,0.00041095,120]
[420683183,1776457944870,-500.0,0.00041095,120]
[420683184,1776457944880,-500.0,0.00041095,120]
[420683185,1776457944890,-500.0,0.00041095,120]
[420683186,1776457944900,-353.10978737,0.00041095,120]
[420683187,1776457944909,-300.0,0.00041095,2]
[420683188,1776457944919,-300.0,0.00041095,2]
[420683189,1776457944928,-300.0,0.00041095,2]
[420683190,1776457944938,-300.0,0.00041095,2]
[420683191,1776457944948,-300.0,0.00041095,2]
[420683192,1776457944958,-300.0,0.00041095,2]
[420683193,1776457944968,-300.0,0.00041095,2]
[420683194,1776457944977,-300.0,0.00041095,2]
[420683195,1776457944987,-300.0,0.00041095,2]
[420683196,1776457944997,-300.0,0.00041095,2]
[420683197,1776457945007,-300.0,0.00041095,2]
[420683198,1776457945016,-300.0,0.00041095,2]
[420683199,1776457945026,-300.0,0.00041095,2]
[420683200,1776457945036,-300.0,0.00041095,2]
[420683201,1776457945045,-300.0,0.00041095,2]
[420683202,1776457945055,-300.0,0.00041095,2]
[420683203,1776457945064,-300.0,0.00041095,2]
[420683204,1776457945074,-300.0,0.00041095,2]